Cogmind - Beta 13 @@@ ROGUE MODE // 2024.05.18 @ 17:51:58 Player: Lunace Result: Destroyed by D-53 Grenadier with Mini Grenade Launcher Performance ------------- Evolutions (1) 500 Regions Visited (4) 800 Robots Destroyed (32) 160 Value Destroyed (908) 908 Prototype IDs (2) 40 Alien Tech Used (0) 0 Bonus (15) 15 TOTAL SCORE: 2423 Bonus ------- High Alert Combat Kills 15 Cogmind --------- Core Integrity 0/400 Matter 134/300 Energy 71/100 System Corruption 0% Temperature Cool (0) Movement Core (400) Ox7 Location -9/Mines Parts ------- > --- POWER (1) -------- (None) > --- PROPULSION (4) --- (None) > --- UTILITY (2) ------ Large Storage Unit > --- WEAPON (2) ------- Improved Light Cannon > --- INVENTORY (15) --- Improved Ion Engine Aluminum Leg Aluminum Leg Signal Interpreter Heavy Assault Rifle Heavy Assault Rifle Peak State ------------ > --- POWER ------------ Improved Ion Engine > --- PROPULSION ------- Aluminum Leg Aluminum Leg Aluminum Leg Improved Aluminum Leg > --- UTILITY ---------- Large Storage Unit Medium Armor Plating > --- WEAPON ----------- Improved Light Cannon Improved Light Cannon > --- INVENTORY -------- Ion Engine Ion Engine Aluminum Leg Aluminum Leg Signal Interpreter Light Armor Plating Light Armor Plating Light Armor Plating Assault Rifle Assault Rifle [Rating: 15] Favorites ----------- Power Ion Engine Engine Ion Engine Propulsion Aluminum Leg Leg Aluminum Leg Utility Light Armor Plating Device Seismic Detector Storage Large Storage Unit Protection Light Armor Plating Weapon Assault Rifle Ballistic Gun Assault Rifle Ballistic Cannon Improved Light Cannon Launcher Rocket Launcher Build | -11 -10 -10 -9 -9 ------- Run | Yrd Mat Min Mat Min Slots Evolved 2 | . . . 2 . Power . | . . . . . Propulsion 2 | . . . 2 . Utility . | . . . . . Weapon . | . . . . . Parts Attached 33 | 6 3 1 16 7 Power 5 | 1 . 1 3 . Engine 5 | 1 . 1 3 . Core . | . . . . . Reactor . | . . . . . Propulsion 13 | 2 1 . 8 2 Treads . | . . . . . Leg 13 | 2 1 . 8 2 Wheel . | . . . . . Hover . | . . . . . Flight . | . . . . . Utility 7 | 1 2 . 3 1 Device 1 | . 1 . . . Storage 2 | 1 . . 1 . Processor . | . . . . . Hackware . | . . . . . Protection 4 | . 1 . 2 1 Artifact . | . . . . . Weapon 8 | 2 . . 2 4 Energy Gun . | . . . . . Energy Cannon . | . . . . . Ballistic Gun 2 | 2 . . . . Ballistic Cannon 4 | . . . 2 2 Launcher 2 | . . . . 2 Special Weapon . | . . . . . Impact Weapon . | . . . . . Slashing Weapon . | . . . . . Piercing Weapon . | . . . . . Special Melee Weapon . | . . . . . Unidentified Prototypes . | . . . . . Parts Lost 10 | . . . 1 9 Power 1 | . . . . 1 Propulsion 4 | . . . . 4 Utility 2 | . . . 1 1 Weapon 3 | . . . . 3 Highest Loss Streak 9 | . . . 1 9 To Critical Strikes . | . . . . . Average Slot Usage (%) 98 | . 98 100 99 96 Engine 12 | . 14 14 11 10 Leg 36 | . 28 28 43 43 Storage 12 | . 14 14 11 11 Protection 10 | . 8 14 11 10 Ballistic Gun 13 | . 28 28 1 . Ballistic Cannon 10 | . . . 20 18 Naked Turns . | . . . . . Heaviest Build 42 | 14 17 17 42 38 Greatest Support 43 | 20 20 20 43 40 Greatest Overweight (x) . | . . . . . Average Overweight (x) . | . . . . . Largest Inventory Capacity 15 | 8 8 8 15 15 Average Capacity 11 | 7 8 8 14 15 Most Carried 11 | 4 8 8 11 10 Average Carried 7 | 2 5 7 8 8 Final Capacity 15 | 8 8 8 15 15 Final Carried 8 | 3 8 8 8 6 Class Distribution -------------------- 75% | Mutant 24% | Scavenger-Mutant Dominant Class ---------------- Mutant | -10/Materials Mutant | -10/Mines Mutant | -9/Materials Scavenger-Mutant | -9/Mines Resources | -11 -10 -10 -9 -9 ----------- Run | Yrd Mat Min Mat Min Matter Collected 947 | 193 181 58 395 120 Remotely . | . . . . . Salvage Created 776 | . 208 146 318 104 Parts 61 | . 14 8 28 11 Haulers Intercepted . | . . . . . Recyclers Shooed . | . . . . . Parts Field Recycled . | . . . . . Retrieved Matter . | . . . . . Parts Self-Destructed . | . . . . . Prevented . | . . . . . Kills | -11 -10 -10 -9 -9 ------- Run | Yrd Mat Min Mat Min Combat Hostiles Destroyed 27 | . 4 3 13 7 Guns 7 | . 4 3 . . Cannons 17 | . . . 13 4 AOE 3 | . . . . 3 Classes Destroyed 7 | . 3 1 3 . Worker 1 | . 1 . . . Builder 1 | . . . 1 . Tunneler 1 | . . 1 . . Watcher 2 | . 1 . 1 . Swarmer 7 | . . . 3 4 Grunt 16 | . 4 3 6 3 Sentry 4 | . . . 4 . Best Kill Streak 9 | . 2 3 9 3 Combat Bots Only 7 | . 2 2 7 3 Max Kills in Single Turn 2 | . 1 2 2 2 Gunslinging . | . . . . . Exploded 2 | . . . . 2 Melee . | . . . . . Uniques/NPCs Destroyed . | . . . . . Combat | -11 -10 -10 -9 -9 -------- Run | Yrd Mat Min Mat Min Hostile Shots Fired 147 | . 15 7 74 51 Missed 36 | . 4 2 14 16 Damage Taken 1917 | . 125 54 609 1129 Core 453 | . 22 22 67 342 Absorbed by Shields . | . . . . . Core Remaining (%) 91 | 100 . 82 . . Volleys Fired 74 | . 14 8 31 21 Largest 2 | . 2 2 2 2 Hottest 78 | . 40 40 78 78 Shots Fired 143 | . 28 16 62 37 Gun 44 | . 28 16 . . Cannon 84 | . . . 62 22 Launcher 15 | . . . . 15 Special . | . . . . . Kinetic 128 | . 28 16 62 22 Thermal . | . . . . . Explosive 15 | . . . . 15 Electromagnetic . | . . . . . Robot Hit Streak 10 | . 7 6 10 6 Robot Miss Streak 5 | . 1 2 4 5 Penetration Max . | . . . . . Secondary Targets . | . . . . . Shots Hit Robots 89 | . 20 9 41 19 Core Hits 52 | . 10 7 16 19 Critical Kills 1 | . . 1 . . Critical Parts Destroyed . | . . . . . Critical Strikes 6 | . . 1 4 1 Destroy 1 | . . 1 . . Blast 5 | . . . 4 1 Melee Attacks . | . . . . . Impact . | . . . . . Slashing . | . . . . . Piercing . | . . . . . Sneak Attacks . | . . . . . Combat Hostiles . | . . . . . Follow-up Attacks . | . . . . . Damage Inflicted 1886 | . 269 140 912 565 Guns 409 | . 269 140 . . Cannons 1137 | . . . 912 225 Explosions 340 | . . . . 340 Melee . | . . . . . Ramming . | . . . . . Kinetic 1546 | . 269 140 912 225 Thermal . | . . . . . Explosive 340 | . . . . 340 Electromagnetic . | . . . . . Impact . | . . . . . Slashing . | . . . . . Piercing . | . . . . . Highest Corruption . | . . . . . Average Corruption . | . . . . . Corruption Purged . | . . . . . Corruption Blocked . | . . . . . Overload Shots . | . . . . . Overflow Damage 47 | . . . 47 . Projectiles 47 | . . . 47 . Explosions . | . . . . . Melee . | . . . . . Knockbacks 11 | . . . 9 2 Impact . | . . . . . Kinetic 10 | . . . 8 2 Secondary 1 | . . . 1 . Self-Inflicted Damage 131 | . . . . 131 Shots 6 | . . . . 6 Rammed . | . . . . . Targets Rammed . | . . . . . Kicked . | . . . . . Crushed . | . . . . . Highest Temperature 400 | . 5 2 400 129 Average Temperature 119 | . 2 2 152 61 Received Heat Transfer 315 | . 72 30 189 24 Effects 4 | . . . 4 . Shutdowns 2 | . . . 2 . Interference 2 | . . . 2 . Siege Activations . | . . . . . Robots Corrupted . | . . . . . Combat Hostiles . | . . . . . Parts Fried . | . . . . . Impact Corruptions . | . . . . . Robots Melted . | . . . . . Combat Hostiles . | . . . . . Parts Melted . | . . . . . Heat Transferred . | . . . . . Parts Sabotaged . | . . . . . Parts Stolen . | . . . . . Parts Stripped . | . . . . . Power Chain Reactions . | . . . . . Alert | -11 -10 -10 -9 -9 ------- Run | Yrd Mat Min Mat Min Peak Influence 507 | . 77 86 507 342 Initial 137 | . . 21 33 137 Average 135 | . 41 28 229 248 Maximum Alert Level 2 | . . . 2 1 Low Security (%) 66 | 100 100 100 50 3 Level 1 28 | . . . 34 96 Level 2 4 | . . . 14 . Level 3 . | . . . . . Level 4 . | . . . . . Level 5 . | . . . . . High Security . | . . . . . Max Security . | . . . . . Squads Dispatched 2 | . 1 . 1 . Investigation . | . . . . . Extermination . | . . . . . Reinforcement 2 | . 1 . 1 . Assault . | . . . . . Garrison . | . . . . . Intercept . | . . . . . Searches Triggered . | . . . . . Construction Impeded . | . . . . . Haulers Reinforced . | . . . . . Active Scanning Responses . | . . . . . Cargo Convoy Interrupts . | . . . . . Stealth | -11 -10 -10 -9 -9 --------- Run | Yrd Mat Min Mat Min Distress Signals 1 | . . . 1 . Communications Jammed . | . . . . . Distress Signals . | . . . . . Times Spotted 40 | . 7 3 20 10 Peak Tracking Total 7 | . 2 1 7 3 Tactical Retreats 3 | . . . 3 . Traps | -11 -10 -10 -9 -9 ------- Run | Yrd Mat Min Mat Min Traps Triggered . | . . . . . Indirectly . | . . . . . Trap Hack Attempts . | . . . . . Triggered . | . . . . . Disarmed . | . . . . . Reprogrammed . | . . . . . Reused . | . . . . . Traps Extracted . | . . . . . Installed . | . . . . . Triggered . | . . . . . Machines | -11 -10 -10 -9 -9 ---------- Run | Yrd Mat Min Mat Min Machines Disabled 3 | . . . 2 1 Max in Single Turn 1 | . . . 1 1 Machines Repaired . | . . . . . Machines Dismantled . | . . . . . Machines Sabotaged . | . . . . . Overloaded Fab Kills . | . . . . . Hacking | -11 -10 -10 -9 -9 --------- Run | Yrd Mat Min Mat Min Machines Accessed 3 | . 3 . . . Terminals 3 | . 3 . . . Fabricators . | . . . . . Repair Stations . | . . . . . Recycling Units . | . . . . . Scanalyzers . | . . . . . Garrison Access . | . . . . . Total Hacks 11 | . 11 . . . Successful 7 | . 7 . . . Failed 4 | . 4 . . . Catastrophic . | . . . . . Database Lockouts . | . . . . . Manual 10 | . 10 . . . Terminals 11 | . 11 . . . Fabricators . | . . . . . Repair Stations . | . . . . . Recycling Units . | . . . . . Scanalyzers . | . . . . . Garrison Access . | . . . . . Terminal Hacks 3 | . 3 . . . Prototype ID Bank 1 | . 1 . . . Branch Access Points 1 | . 1 . . . Unreport Threat 1 | . 1 . . . Fabricator Hacks . | . . . . . Repair Station Hacks . | . . . . . Recycling Unit Hacks . | . . . . . Scanalyzer . | . . . . . Garrison Access Hacks . | . . . . . Unauthorized Hacks 4 | . 4 . . . Terminals 4 | . 4 . . . Botnet 3 | . 3 . . . Operators 1 | . 1 . . . Fabricators . | . . . . . Repair Stations . | . . . . . Recycling Units . | . . . . . Scanalyzers . | . . . . . Garrison Access . | . . . . . Data Cores Recovered . | . . . . . Used . | . . . . . Hacking Detections 3 | . 3 . . . Full Trace Events . | . . . . . Feedback Events . | . . . . . Feedback Blocked . | . . . . . Robot Schematics Acquired . | . . . . . Robots Built . | . . . . . Authchips . | . . . . . Time . | . . . . . Total Robot Build Rating . | . . . . . Part Schematics Acquired . | . . . . . Parts Built . | . . . . . Authchips . | . . . . . Time . | . . . . . Total Part Build Rating . | . . . . . Parts Repaired . | . . . . . Time . | . . . . . Parts Recycled . | . . . . . Recycled Matter . | . . . . . Retrieved Matter . | . . . . . Retrieved Components . | . . . . . Parts Scanalyzed . | . . . . . Part Schematics Acquired . | . . . . . Parts Damaged . | . . . . . Bothacking | -11 -10 -10 -9 -9 ------------ Run | Yrd Mat Min Mat Min Used RIF Installer . | . . . . . Robots Hacked . | . . . . . Non-combat . | . . . . . Combat . | . . . . . Robot Hacks Applied . | . . . . . Relay Couplers Released . | . . . . . Fabnet Peak Effective % . | . . . . . Robots Rewired . | . . . . . Allies Hacked . | . . . . . Hacks Repelled . | . . . . . Allies | -11 -10 -10 -9 -9 -------- Run | Yrd Mat Min Mat Min Total Allies . | . . . . . Largest Group . | . . . . . Highest-Rated Group . | . . . . . Highest-Rated Ally . | . . . . . Total Orders . | . . . . . Ally Attacks . | . . . . . Total Damage . | . . . . . Kills . | . . . . . Allies Corrupted . | . . . . . Allies Melted . | . . . . . Intel | -11 -10 -10 -9 -9 ------- Run | Yrd Mat Min Mat Min Robot Analysis Total . | . . . . . Derelict Logs Recovered 2 | . . 1 . 1 Drone Launches . | . . . . . Drone Recoveries . | . . . . . Exploration | -11 -10 -10 -9 -9 ------------- Run | Yrd Mat Min Mat Min Turns Passed 1523 | 55 371 322 517 258 Spaces Moved 865 | 37 259 127 284 158 Core 3 | 3 . . . . Treads . | . . . . . Legs 862 | 34 259 127 284 158 Wheels . | . . . . . Hover . | . . . . . Flight . | . . . . . Fastest Speed 50 | 50 120 120 120 120 Average Speed 119 | 114 120 120 120 120 Slowest Speed 120 | 120 120 120 120 120 Overloaded Moves . | . . . . . Propulsion Burnouts . | . . . . . Robots Hopped . | . . . . . Cave-ins Triggered . | . . . . . Exploration Rate (%) 31 | 3 50 26 38 41 Regions Visited 4 Branch Regions 2 Pre-discovered Areas . | . . . . . Known Exits Taken 1 | . 1 . . . Unknown Exits Taken 3 | 1 . 1 1 . Scrap Searched . | . . . . . Spaces Dug . | . . . . . Terrain Destroyed 71 | . . . 5 66 Melee . | . . . . . Projectile 6 | . . . 5 1 AOE 65 | . . . . 65 Terrain Rammed . | . . . . . Walls Destroyed . | . . . . . Machines Disabled . | . . . . . Actions | -11 -10 -10 -9 -9 --------- Run | Yrd Mat Min Mat Min Total 1208 | 47 292 282 398 189 Wait 196 | . 6 142 47 1 Move 861 | 36 258 126 283 158 Hop . | . . . . . Pick Up 21 | 4 7 2 8 . Fast Attach 12 | 6 2 . 4 . Attach 5 | . . . 3 2 Detach . | . . . . . Swap 16 | . 1 1 9 5 Drop 23 | 1 4 3 13 2 Fire 74 | . 14 8 31 21 Melee . | . . . . . Ram . | . . . . . Kick . | . . . . . Crush . | . . . . . Escape Stasis . | . . . . . Rewire . | . . . . . Trap . | . . . . . Miscellaneous . | . . . . . Route ------- -11/Scrapyard -10/Materials (discovered 3 exits: [*Mat] / *Min x2) -10/Mines -9/Materials -9/Mines (discovered 1 exit: [*Mat]) History --------- Turn | Location | Event 6 | -11/Scrapyard | Discovered new exit (range 15) 56 | -11/Scrapyard | Entered Materials 56 | -10/Materials | Discovered new exit (range 8) 279 | -10/Materials | Discovered new exit (range 15) 313 | -10/Materials | Build established: Mutant 344 | -10/Materials | Identified exit to Mines 427 | -10/Materials | Entered Mines 485 | -10/Mines | Discovered new exit (range 13) 561 | -10/Mines | Excavation squad dispatched 561 | -10/Mines | A large section of the Mines collapsed 749 | -10/Mines | Entered Materials 749 | -9/Materials | Evolved 2 slots: Propulsion x2 1109 | -9/Materials | Destroyed 7 combat bots 1180 | -9/Materials | Discovered new exit (range 14) 1266 | -9/Materials | Entered Mines 1370 | -9/Mines | Discovered new exit (range 10) 1392 | -9/Mines | Learned location of 2 exits from Materials 1424 | -9/Mines | Build established: Scavenger-Mutant 1484 | -9/Mines | Assembled infested the area 1514 | -9/Mines | Core integrity fell below 50% 1520 | -9/Mines | Core integrity fell below 20% 1524 | -9/Mines | Destroyed by D-53 Grenadier with Mini Grenade Launcher Last Messages --------------- 01507_ Lgt. Armor Plating destroyed. 01507_ U-05 Engineer builds a Wall. 01508_ The unstable cave ceiling collapses. 01510_ Aluminum Leg destroyed. 01510_ U-05 Engineer builds a Wall. 01511_ The unstable cave ceiling collapses. 01511_ U-05 Engineer builds a Wall. 01516_ U-05 Engineer lays Concrete. 01517_ The unstable cave ceiling collapses. 01517_ U-05 Engineer builds a Wall. 01518_ Rocket Launcher destroyed. 01519_ U-05 Engineer builds a Wall. 01519_ Aluminum Leg destroyed. 01519_ Rocket Launcher destroyed. 01520_ Aluminum Leg destroyed. 01521_ U-05 Engineer lays Concrete. 01522_ Aluminum Leg destroyed. 01522_ U-05 Engineer builds a Wall. 01523_ D-53 Grenadier knocked back. 01524_ Imp. Light Cannon destroyed. Map ----- +----------------------------------------------------+ | ##[ % % #??????????????????????????????????? | | ## %% """ # #????????????????????????????????? | | ## % """" ?????????????????????????????????? | | """" #??????????????????????????????????? | | ## #?????#????????????????????????????? | | ?# #????? #???????????????????????????? | | ?# #????? #??????????????????????????? | | ?### #########????? ##????????????????????????? | | ???# #????????????? #??##????????????????????? | | ???# #?????????????# ?? #????????????????????? | | ???# #?????????????## ?? #????????????????????? | | ???# #????????????## ###? #??????###???????????? | | #### ##??????????# *# #? #####?# ??????????? | | #?????????# # # ## # # ## ??????????? | | #?????????# # # # ?????????? | | ]## #????????? # # # ?????????? | | #### ##?????????# #u# ?????????? | | #???##???????#### #u# ?????????? | | ##????????????# #?????????????? | | #?????????????# ## % #??????????????? | | !#???########??# #### d #??????????????? | | !#???# #??# #??# ##??????????????? | | ##### < " #??# #??# d ###???????????????? | | % #### #??# ##?????????????????? | | % % #??# ####???????????????? | | ##### % = ######??# @ #???????????????? | | ##???########???????# #???????????????? | | ????????????????????# ##???????????????? | | ????????????????????# #????????????????? | | #???????????????????## ####????????????????? | | #????????????????????# ##???????????????????? | | #???????????????????# #????????????????????? | | #???????????????????# #???????????????????? | | ????????????????????## #???????????????????? | | ?????????????????????##### ##???????????????????? | | ??????????????????????????###????????????????????? | | ?????????????????????????????????????????????????? | | ?????????????????????????????????????????????????? | | ?????????????????????????????????????????????????? | | ?????????????????????????????????????????????????? | | ?????????????????????????????????????????????????? | | | | | | | | | | | | | | | | | | | +----------------------------------------------------+ Best States ------------- Heat Dissipation 28 Energy Generation 12 Energy Capacity 265 Matter Stores 300 Matter Capacity 300 Sight Range 16 Terrain Scan Density 10 Armor Coverage 225 Evasion (%) 55 Item Schematics ----------------- None Robot Schematics ------------------ None Fabricated ------------ Nothing Alien Tech Used ----------------- None Achievements -------------- None Challenges ------------ None Game ------ Seed TeslaProtonNanoactuators Manual? 0 Play Time 00:12:19 Cumulative 191.0 hours Start 2024.05.18 @ 17:41:49 End 2024.05.18 @ 17:51:58 Sessions 1 Manual Loads 0 Difficulty Rogue Special Mode None Game No. 185 Rogue 180 Adventurer 5 Explorer 0 Win Type - Total 3 Types 2/0/0/1/0/0/0/0/0 Lore% 54 Gallery% 75 Achievement% 56 Wizard Run 0 Options --------- Layout 2 ASCII 0 Keyboard 0 Movement Arrows Keybinds 0 Fullscreen 1 Font 24/Terminus Map View 50x44 Zoom Use 0% Tactical HUD 1 Map Filters NONE Filters NONE Steam 1 RUN: 0ae2b936-ff1e-45d7-9efd-882de3244799